{"text_format":"1","workbook":"xlsx","n_sheets":4,"sheets":["FORMULAIRE","LISTE VEH","FRAIS VEH","SINISTRES - PANNES"],"not_rendered":{"charts":0,"images":1,"macros":1,"external_links":0,"defined_names":11,"comments":2,"pivot_tables":0},"unopened":[],"bounds":{"document_bytes":16777216,"sheet_cells":100000,"rows_first":2000,"rows_last":500,"rows_between":2000,"halvings":0,"cell_chars":16384,"cell_head_chars":4096},"cells_cut":0,"cells_raw":0,"read":"whole","date_system":"1900"}

{"sheet":"FORMULAIRE","index":0,"n_rows":37,"n_cols":14,"rows_kept":37,"cut":false,"hidden":false,"merged":[[2,6,4,7],[2,9,4,10],[2,8,4,8],[31,12,31,13]]}
[]
[]
[null,null,null,null,null,null,"Veuillez saisir ou sélectionner                                                                  une immatriculation",null,"FF-000-WA"]
[]
[]
[null,null,null,null,null,null,null,null,"Format XX-000-XX"]
[]
["Identité véhicule",null,null,"Coût entretien",null,null,"Achats",null,null,null,null,"Sinistres / Pannes"]
[]
["Marque",{"$f":"IFERROR(VLOOKUP($I$3,'LISTE VEH'!$A$5:$U$65615,2,FALSE),\"\")","v":"FORD"},null,2024,{"$f":"IF(IMMAT=\"\",\"\",SUMIFS(_xlfn.ANCHORARRAY($J$11),_xlfn.ANCHORARRAY($G$11),\">=01/01/2024\",_xlfn.ANCHORARRAY($G$11),\"<=31/12/2024\"))","v":97.35},null,"Date","Fournisseur","Désignation","Prix HT",null,"Date","Problème / Panne","Tavaux effectués"]
["Modèle",{"$f":"IFERROR(VLOOKUP($I$3,'LISTE VEH'!$A$5:$U$65615,3,FALSE),\"\")","v":"TRANSIT"},null,2025,{"$f":"IF(IMMAT=\"\",\"\",SUMIFS(_xlfn.ANCHORARRAY($J$11),_xlfn.ANCHORARRAY($G$11),\">=01/01/2025\",_xlfn.ANCHORARRAY($G$11),\"<=31/12/2025\"))","v":15},null,{"$f":"IF(IMMAT=\"\",\"\",_xlfn._xlws.FILTER('FRAIS VEH'!B2:B315,'FRAIS VEH'!$A$2:$A$315=FORMULAIRE!$I$3,\"\"))","v":"2024-02-29"},{"$f":"IF(IMMAT=\"\",\"\",_xlfn._xlws.FILTER('FRAIS VEH'!C2:C315,'FRAIS VEH'!$A$2:$A$315=FORMULAIRE!$I$3,\"\"))","v":"GUIRAUD"},{"$f":"IF(IMMAT=\"\",\"\",_xlfn._xlws.FILTER('FRAIS VEH'!D2:D315,'FRAIS VEH'!$A$2:$A$315=FORMULAIRE!$I$3,\"\"))","v":"BATTERIE"},{"$f":"IF(IMMAT=\"\",\"\",_xlfn._xlws.FILTER('FRAIS VEH'!E2:E315,'FRAIS VEH'!$A$2:$A$315=FORMULAIRE!$I$3,\"\"))","v":97.35},null,{"$f":"IF(IMMAT=\"\",\"\",_xlfn._xlws.FILTER('SINISTRES - PANNES'!B2:B132,'SINISTRES - PANNES'!$A$2:$A$132=FORMULAIRE!$I$3,\"\"))","v":""},{"$f":"IF(IMMAT=\"\",\"\",_xlfn._xlws.FILTER('SINISTRES - PANNES'!C2:C132,'SINISTRES - PANNES'!$A$2:$A$132=FORMULAIRE!$I$3,\"\"))","v":""},{"$f":"IF(IMMAT=\"\",\"\",_xlfn._xlws.FILTER('SINISTRES - PANNES'!D2:D132,'SINISTRES - PANNES'!$A$2:$A$132=FORMULAIRE!$I$3,\"\"))","v":""}]
["Année",{"$f":"IFERROR(VLOOKUP($I$3,'LISTE VEH'!$A$5:$U$65615,4,FALSE),\"\")","v":"2018-04-30"},null,2026,{"$f":"IF(IMMAT=\"\",\"\",SUMIFS(_xlfn.ANCHORARRAY($J$11),_xlfn.ANCHORARRAY($G$11),\">=01/01/2026\",_xlfn.ANCHORARRAY($G$11),\"<=31/12/2026\"))","v":0},null,"2025-01-02","guiraud","AMPOULES",15]
["Carburant",{"$f":"IFERROR(VLOOKUP($I$3,'LISTE VEH'!$A$5:$U$65615,5,FALSE),\"\")","v":"GO"},null,2027,{"$f":"IF(IMMAT=\"\",\"\",SUMIFS(_xlfn.ANCHORARRAY($J$11),_xlfn.ANCHORARRAY($G$11),\">=01/01/2027\",_xlfn.ANCHORARRAY($G$11),\"<=31/12/2027\"))","v":0}]
[]
["Propriétaire",{"$f":"IFERROR(VLOOKUP($I$3,'LISTE VEH'!$A$5:$U$65615,6,FALSE),\"\")","v":"AEP"}]
["Date acquisition",{"$f":"IFERROR(VLOOKUP($I$3,'LISTE VEH'!$A$5:$U$65615,8,FALSE),\"\")","v":"-"}]
[]
["Date début location",{"$f":"IFERROR(VLOOKUP($I$3,'LISTE VEH'!$A$5:$U$65615,9,FALSE),\"\")","v":"-"}]
["Date fin location",{"$f":"IFERROR(VLOOKUP($I$3,'LISTE VEH'!$A$5:$U$65615,10,FALSE),\"\")","v":"-"}]
[]
["Informations techniques"]
[]
["KM actuel",{"$f":"IFERROR(VLOOKUP($I$3,'LISTE VEH'!$A$5:$U$65615,12,FALSE),\"\")","v":0}]
["Mis à jour le",{"$f":"IFERROR(VLOOKUP($I$3,'LISTE VEH'!$A$5:$U$65615,13,FALSE),\"\")","v":"-"}]
[]
["Dernier CT",{"$f":"IFERROR(VLOOKUP($I$3,'LISTE VEH'!$A$5:$U$65615,13,FALSE),\"\")","v":"-"}]
["Prochain CT",{"$f":"IFERROR(VLOOKUP($I$3,'LISTE VEH'!$A$5:$U$65615,14,FALSE),\"\")","v":"2025-01-13"}]
["CT dépassée ?",{"$f":"IFERROR(VLOOKUP($I$3,'LISTE VEH'!$A$5:$U$65615,15,FALSE),\"\")","v":"Oui"}]
[]
["Dernier CTC",{"$f":"IFERROR(VLOOKUP($I$3,'LISTE VEH'!$A$5:$U$65615,16,FALSE),\"\")","v":"00:00:00"},null,null,null,null,null,null,null,null,null,"Prise en charge assurance"]
["Prochain CTC",{"$f":"IFERROR(VLOOKUP($I$3,'LISTE VEH'!$A$5:$U$65615,17,FALSE),\"\")","v":"00:00:00"},null,null,null,null,null,null,null,null,null,"Date","Suivi dossier Assurance"]
["CTC dépassée ?",{"$f":"IFERROR(VLOOKUP($I$3,'LISTE VEH'!$A$5:$U$65615,18,FALSE),\"\")","v":"00:00:00"},null,null,null,null,null,null,null,null,null,{"$f":"IF(IMMAT=\"\",\"\",_xlfn._xlws.FILTER('SINISTRES - PANNES'!B2:B132,'SINISTRES - PANNES'!$A$2:$A$132=FORMULAIRE!$I$3,\"\"))","v":""},{"$f":"IF(IMMAT=\"\",\"\",_xlfn._xlws.FILTER('SINISTRES - PANNES'!E2:E132,'SINISTRES - PANNES'!$A$2:$A$132=FORMULAIRE!$I$3,\"\"))","v":""}]
[]
["Réf pneus",{"$f":"IFERROR(VLOOKUP($I$3,'LISTE VEH'!$A$5:$U$65615,19,FALSE),\"\")","v":0}]
[]
["Dernier entretien",{"$f":"IFERROR(VLOOKUP($I$3,'LISTE VEH'!$A$5:$W$65615,20,FALSE),\"\")","v":"00:00:00"}]
["Prochain entretien",{"$f":"IFERROR(VLOOKUP($I$3,'LISTE VEH'!$A$5:$W$65615,21,FALSE),\"\")","v":"215 65 r16"}]

{"sheet":"LISTE VEH","index":1,"n_rows":280,"n_cols":23,"rows_kept":280,"cut":false,"hidden":false,"merged":[[2,10,2,11],[2,12,2,14],[2,8,2,9],[2,20,2,22],[2,17,2,19]]}
[]
[]
[null,"Aujourd'hui :",{"$f":"TODAY()","v":"2025-01-15"},null,null,null,null,null,"LEASING",null,"KILOMÉTRAGE",null,"CONTRÔLE TECHNIQUE",null,null,null,null,"CONTRÔLE TECHNIQUE COMPLÉMENTAIRE",null,null,"ENTRETIENS"]
["Immatriculation","MARQUE","Modèle","Année","Carburant","Propriétaire","Affectation","Date acquisition","Date début location","Date fin location","Km actuel","Mis à jour le","Dernier CT","Prochain CT","CT dépassé ?","nb jours retardColonne2","Alerte envoyée","Dernier CTC","Prochain CTC","CTC dépassé ?","Réf pneus","Dernier entretien","Prochain entretien"]
["FF-000-WA","FORD","TRANSIT","2018-04-30","GO","AEP","-","-","-","-",null,null,"-","2025-01-13",{"$f":"IF(ISBLANK(Tableau1[[#This Row],[Prochain CT]]),\"\",IF(Tableau1[[#This Row],[Prochain CT]]<$C$3,\"Oui\",\"\"))","v":"Oui"},null,null,null,null,null,"215 65 r16","2023-10-01","2025-01-15"]
["GM-000-QG","RENAULT","CLIO","2023-06-10","ESS","STAR LEASE","Nicolas","-","2023-06-10","2028-06-10",null,null,null,"2025-01-13",{"$f":"IF(ISBLANK(Tableau1[[#This Row],[Prochain CT]]),\"\",IF(Tableau1[[#This Row],[Prochain CT]]<$C$3,\"Oui\",\"\"))","v":"Oui"},null,null,null,null,null,"215 65 r16"]
[null,null,null,null,null,null,null,null,null,null,null,null,null,null,{"$f":"IF(ISBLANK(Tableau1[[#This Row],[Prochain CT]]),\"\",IF(Tableau1[[#This Row],[Prochain CT]]<$C$3,\"Oui\",\"\"))","v":""}]
[null,null,null,null,null,null,null,null,null,null,null,null,null,null,{"$f":"IF(ISBLANK(Tableau1[[#This Row],[Prochain CT]]),\"\",IF(Tableau1[[#This Row],[Prochain CT]]<$C$3,\"Oui\",\"\"))","v":""}]
[null,null,null,null,null,null,null,null,null,null,null,null,null,null,{"$f":"IF(ISBLANK(Tableau1[[#This Row],[Prochain CT]]),\"\",IF(Tableau1[[#This Row],[Prochain CT]]<$C$3,\"Oui\",\"\"))","v":""}]
[null,null,null,null,null,null,null,null,null,null,null,null,null,null,{"$f":"IF(ISBLANK(Tableau1[[#This Row],[Prochain CT]]),\"\",IF(Tableau1[[#This Row],[Prochain CT]]<$C$3,\"Oui\",\"\"))","v":""}]
[null,null,null,null,null,null,null,null,null,null,null,null,null,null,{"$f":"IF(ISBLANK(Tableau1[[#This Row],[Prochain CT]]),\"\",IF(Tableau1[[#This Row],[Prochain CT]]<$C$3,\"Oui\",\"\"))","v":""}]
[null,null,null,null,null,null,null,null,null,null,null,null,null,null,{"$f":"IF(ISBLANK(Tableau1[[#This Row],[Prochain CT]]),\"\",IF(Tableau1[[#This Row],[Prochain CT]]<$C$3,\"Oui\",\"\"))","v":""}]
[null,null,null,null,null,null,null,null,null,null,null,null,null,null,{"$f":"IF(ISBLANK(Tableau1[[#This Row],[Prochain CT]]),\"\",IF(Tableau1[[#This Row],[Prochain CT]]<$C$3,\"Oui\",\"\"))","v":""}]
[null,null,null,null,null,null,null,null,null,null,null,null,null,null,{"$f":"IF(ISBLANK(Tableau1[[#This Row],[Prochain CT]]),\"\",IF(Tableau1[[#This Row],[Prochain CT]]<$C$3,\"Oui\",\"\"))","v":""}]
[null,null,null,null,null,null,null,null,null,null,null,null,null,null,{"$f":"IF(ISBLANK(Tableau1[[#This Row],[Prochain CT]]),\"\",IF(Tableau1[[#This Row],[Prochain CT]]<$C$3,\"Oui\",\"\"))","v":""}]
[null,null,null,null,null,null,null,null,null,null,null,null,null,null,{"$f":"IF(ISBLANK(Tableau1[[#This Row],[Prochain CT]]),\"\",IF(Tableau1[[#This Row],[Prochain CT]]<$C$3,\"Oui\",\"\"))","v":""}]
[null,null,null,null,null,null,null,null,null,null,null,null,null,null,{"$f":"IF(ISBLANK(Tableau1[[#This Row],[Prochain CT]]),\"\",IF(Tableau1[[#This Row],[Prochain CT]]<$C$3,\"Oui\",\"\"))","v":""}]
[null,null,null,null,null,null,null,null,null,null,null,null,null,null,{"$f":"IF(ISBLANK(Tableau1[[#This Row],[Prochain CT]]),\"\",IF(Tableau1[[#This Row],[Prochain CT]]<$C$3,\"Oui\",\"\"))","v":""}]
[null,null,null,null,null,null,null,null,null,null,null,null,null,null,{"$f":"IF(ISBLANK(Tableau1[[#This Row],[Prochain CT]]),\"\",IF(Tableau1[[#This Row],[Prochain CT]]<$C$3,\"Oui\",\"\"))","v":""}]
[null,null,null,null,null,null,null,null,null,null,null,null,null,null,{"$f":"IF(ISBLANK(Tableau1[[#This Row],[Prochain CT]]),\"\",IF(Tableau1[[#This Row],[Prochain CT]]<$C$3,\"Oui\",\"\"))","v":""}]
[null,null,null,null,null,null,null,null,null,null,null,null,null,null,{"$f":"IF(ISBLANK(Tableau1[[#This Row],[Prochain CT]]),\"\",IF(Tableau1[[#This Row],[Prochain CT]]<$C$3,\"Oui\",\"\"))","v":""}]
[null,null,null,null,null,null,null,null,null,null,null,null,null,null,{"$f":"IF(ISBLANK(Tableau1[[#This Row],[Prochain CT]]),\"\",IF(Tableau1[[#This Row],[Prochain CT]]<$C$3,\"Oui\",\"\"))","v":""}]
[null,null,null,null,null,null,null,null,null,null,null,null,null,null,{"$f":"IF(ISBLANK(Tableau1[[#This Row],[Prochain CT]]),\"\",IF(Tableau1[[#This Row],[Prochain CT]]<$C$3,\"Oui\",\"\"))","v":""}]
[null,null,null,null,null,null,null,null,null,null,null,null,null,null,{"$f":"IF(ISBLANK(Tableau1[[#This Row],[Prochain CT]]),\"\",IF(Tableau1[[#This Row],[Prochain CT]]<$C$3,\"Oui\",\"\"))","v":""}]
[null,null,null,null,null,null,null,null,null,null,null,null,null,null,{"$f":"IF(ISBLANK(Tableau1[[#This Row],[Prochain CT]]),\"\",IF(Tableau1[[#This Row],[Prochain CT]]<$C$3,\"Oui\",\"\"))","v":""}]
[]
[]
[]
[]
[]
[]
[]
[]
[]
[]
[]
[]
[]
[]
[]
[]
[]
[]
[]
[]
[]
[]
[]
[]
[]
[]
[]
[]
[]
[]
[]
[]
[]
[]
[]
[]
[]
[]
[]
[]
[]
[]
[]
[]
[]
[]
[]
[]
[]
[]
[]
[]
[]
[]
[]
[]
[]
[]
[]
[]
[]
[]
[]
[]
[]
[]
[]
[]
[]
[]
[]
[]
[]
[]
[]
[]
[]
[]
[]
[]
[]
[]
[]
[]
[]
[]
[]
[]
[]
[]
[]
[]
[]
[]
[]
[]
[]
[]
[]
[]
[]
[]
[]
[]
[]
[]
[]
[]
[]
[]
[]
[]
[]
[]
[]
[]
[]
[]
[]
[]
[]
[]
[]
[]
[]
[]
[]
[]
[]
[]
[]
[]
[]
[]
[]
[]
[]
[]
[]
[]
[]
[]
[]
[]
[]
[]
[]
[]
[]
[]
[]
[]
[]
[]
[]
[]
[]
[]
[]
[]
[]
[]
[]
[]
[]
[]
[]
[]
[]
[]
[]
[]
[]
[]
[]
[]
[]
[]
[]
[]
[]
[]
[]
[]
[]
[]
[]
[]
[]
[]
[]
[]
[]
[]
[]
[]
[]
[]
[]
[]
[]
[]
[]
[]
[]
[]
[]
[]
[]
[]
[]
[]
[]
[]
[]
[]
[]
[]
[]
[]
[]
[]
[]
[]
[]
[]
[]
[]
[]
[]
[]
[]
[]
[]
[]
[]
[]
[]
[]
[null,null,null,null,null,null,null,null,null,null,null,null,null,null,{"$f":"IF(ISBLANK(Tableau1[[#This Row],[Prochain CT]]),\"\",IF(Tableau1[[#This Row],[Prochain CT]]<$C$3,\"Oui\",\"\"))","v":""},null,null,null,null,{"$f":"IF(ISBLANK(Tableau1[[#This Row],[Prochain CTC]]),\"\",IF(Tableau1[[#This Row],[Prochain CTC]]<$C$3,\"Oui\",\"\"))","v":""}]
[null,null,null,null,null,null,null,null,null,null,null,null,null,null,{"$f":"IF(ISBLANK(Tableau1[[#This Row],[Prochain CT]]),\"\",IF(Tableau1[[#This Row],[Prochain CT]]<$C$3,\"Oui\",\"\"))","v":""},null,null,null,null,{"$f":"IF(ISBLANK(Tableau1[[#This Row],[Prochain CTC]]),\"\",IF(Tableau1[[#This Row],[Prochain CTC]]<$C$3,\"Oui\",\"\"))","v":""}]
[null,null,null,null,null,null,null,null,null,null,null,null,null,null,{"$f":"IF(ISBLANK(Tableau1[[#This Row],[Prochain CT]]),\"\",IF(Tableau1[[#This Row],[Prochain CT]]<$C$3,\"Oui\",\"\"))","v":""},null,null,null,null,{"$f":"IF(ISBLANK(Tableau1[[#This Row],[Prochain CTC]]),\"\",IF(Tableau1[[#This Row],[Prochain CTC]]<$C$3,\"Oui\",\"\"))","v":""}]
[null,null,null,null,null,null,null,null,null,null,null,null,null,null,{"$f":"IF(ISBLANK(Tableau1[[#This Row],[Prochain CT]]),\"\",IF(Tableau1[[#This Row],[Prochain CT]]<$C$3,\"Oui\",\"\"))","v":""},null,null,null,null,{"$f":"IF(ISBLANK(Tableau1[[#This Row],[Prochain CTC]]),\"\",IF(Tableau1[[#This Row],[Prochain CTC]]<$C$3,\"Oui\",\"\"))","v":""}]
[null,null,null,null,null,null,null,null,null,null,null,null,null,null,{"$f":"IF(ISBLANK(Tableau1[[#This Row],[Prochain CT]]),\"\",IF(Tableau1[[#This Row],[Prochain CT]]<$C$3,\"Oui\",\"\"))","v":""},null,null,null,null,{"$f":"IF(ISBLANK(Tableau1[[#This Row],[Prochain CTC]]),\"\",IF(Tableau1[[#This Row],[Prochain CTC]]<$C$3,\"Oui\",\"\"))","v":""}]
[null,null,null,null,null,null,null,null,null,null,null,null,null,null,{"$f":"IF(ISBLANK(Tableau1[[#This Row],[Prochain CT]]),\"\",IF(Tableau1[[#This Row],[Prochain CT]]<$C$3,\"Oui\",\"\"))","v":""},null,null,null,null,{"$f":"IF(ISBLANK(Tableau1[[#This Row],[Prochain CTC]]),\"\",IF(Tableau1[[#This Row],[Prochain CTC]]<$C$3,\"Oui\",\"\"))","v":""}]
[null,null,null,null,null,null,null,null,null,null,null,null,null,null,{"$f":"IF(ISBLANK(Tableau1[[#This Row],[Prochain CT]]),\"\",IF(Tableau1[[#This Row],[Prochain CT]]<$C$3,\"Oui\",\"\"))","v":""},null,null,null,null,{"$f":"IF(ISBLANK(Tableau1[[#This Row],[Prochain CTC]]),\"\",IF(Tableau1[[#This Row],[Prochain CTC]]<$C$3,\"Oui\",\"\"))","v":""}]
[null,null,null,null,null,null,null,null,null,null,null,null,null,null,{"$f":"IF(ISBLANK(Tableau1[[#This Row],[Prochain CT]]),\"\",IF(Tableau1[[#This Row],[Prochain CT]]<$C$3,\"Oui\",\"\"))","v":""},null,null,null,null,{"$f":"IF(ISBLANK(Tableau1[[#This Row],[Prochain CTC]]),\"\",IF(Tableau1[[#This Row],[Prochain CTC]]<$C$3,\"Oui\",\"\"))","v":""}]
[null,null,null,null,null,null,null,null,null,null,null,null,null,null,{"$f":"IF(ISBLANK(Tableau1[[#This Row],[Prochain CT]]),\"\",IF(Tableau1[[#This Row],[Prochain CT]]<$C$3,\"Oui\",\"\"))","v":""},null,null,null,null,{"$f":"IF(ISBLANK(Tableau1[[#This Row],[Prochain CTC]]),\"\",IF(Tableau1[[#This Row],[Prochain CTC]]<$C$3,\"Oui\",\"\"))","v":""}]
[null,null,null,null,null,null,null,null,null,null,null,null,null,null,{"$f":"IF(ISBLANK(Tableau1[[#This Row],[Prochain CT]]),\"\",IF(Tableau1[[#This Row],[Prochain CT]]<$C$3,\"Oui\",\"\"))","v":""},null,null,null,null,{"$f":"IF(ISBLANK(Tableau1[[#This Row],[Prochain CTC]]),\"\",IF(Tableau1[[#This Row],[Prochain CTC]]<$C$3,\"Oui\",\"\"))","v":""}]
[null,null,null,null,null,null,null,null,null,null,null,null,null,null,{"$f":"IF(ISBLANK(Tableau1[[#This Row],[Prochain CT]]),\"\",IF(Tableau1[[#This Row],[Prochain CT]]<$C$3,\"Oui\",\"\"))","v":""},null,null,null,null,{"$f":"IF(ISBLANK(Tableau1[[#This Row],[Prochain CTC]]),\"\",IF(Tableau1[[#This Row],[Prochain CTC]]<$C$3,\"Oui\",\"\"))","v":""}]
[null,null,null,null,null,null,null,null,null,null,null,null,null,null,{"$f":"IF(ISBLANK(Tableau1[[#This Row],[Prochain CT]]),\"\",IF(Tableau1[[#This Row],[Prochain CT]]<$C$3,\"Oui\",\"\"))","v":""},null,null,null,null,{"$f":"IF(ISBLANK(Tableau1[[#This Row],[Prochain CTC]]),\"\",IF(Tableau1[[#This Row],[Prochain CTC]]<$C$3,\"Oui\",\"\"))","v":""}]
[null,null,null,null,null,null,null,null,null,null,null,null,null,null,{"$f":"IF(ISBLANK(Tableau1[[#This Row],[Prochain CT]]),\"\",IF(Tableau1[[#This Row],[Prochain CT]]<$C$3,\"Oui\",\"\"))","v":""},null,null,null,null,{"$f":"IF(ISBLANK(Tableau1[[#This Row],[Prochain CTC]]),\"\",IF(Tableau1[[#This Row],[Prochain CTC]]<$C$3,\"Oui\",\"\"))","v":""}]
[null,null,null,null,null,null,null,null,null,null,null,null,null,null,{"$f":"IF(ISBLANK(Tableau1[[#This Row],[Prochain CT]]),\"\",IF(Tableau1[[#This Row],[Prochain CT]]<$C$3,\"Oui\",\"\"))","v":""},null,null,null,null,{"$f":"IF(ISBLANK(Tableau1[[#This Row],[Prochain CTC]]),\"\",IF(Tableau1[[#This Row],[Prochain CTC]]<$C$3,\"Oui\",\"\"))","v":""}]
[null,null,null,null,null,null,null,null,null,null,null,null,null,null,{"$f":"IF(ISBLANK(Tableau1[[#This Row],[Prochain CT]]),\"\",IF(Tableau1[[#This Row],[Prochain CT]]<$C$3,\"Oui\",\"\"))","v":""},null,null,null,null,{"$f":"IF(ISBLANK(Tableau1[[#This Row],[Prochain CTC]]),\"\",IF(Tableau1[[#This Row],[Prochain CTC]]<$C$3,\"Oui\",\"\"))","v":""}]
[null,null,null,null,null,null,null,null,null,null,null,null,null,null,{"$f":"IF(ISBLANK(Tableau1[[#This Row],[Prochain CT]]),\"\",IF(Tableau1[[#This Row],[Prochain CT]]<$C$3,\"Oui\",\"\"))","v":""},null,null,null,null,{"$f":"IF(ISBLANK(Tableau1[[#This Row],[Prochain CTC]]),\"\",IF(Tableau1[[#This Row],[Prochain CTC]]<$C$3,\"Oui\",\"\"))","v":""}]

{"sheet":"FRAIS VEH","index":2,"n_rows":3,"n_cols":7,"rows_kept":3,"cut":false,"hidden":false,"merged":[]}
["Immatriculation","Date","Fournisseur","Désignation","Prix HT","N° facture","Date facture"]
["FF-000-WA","2024-02-29","GUIRAUD","BATTERIE",97.35,15003751,2024]
["FF-000-WA","2025-01-02","guiraud","AMPOULES",15,256012,2025]

{"sheet":"SINISTRES - PANNES","index":3,"n_rows":2,"n_cols":5,"rows_kept":2,"cut":false,"hidden":false,"merged":[]}
["Immatriculation","Date","Problème / Panne","Travaux effectués","Suivi Prise ne charge Assurance"]
["GM-000-QG","2025-01-01","Accident rocade","Parce choc arrière","10/01/25 : ouverture dossier n° XXXXXX\n14/01/25 : RDV EXPERT Garage\n31/01/25 : Accord prise en charge - clôture dossier"]